bitfinex/quotes_SOLUSD_20250125
["timestamp","ask_amount","ask_price","bid_price","bid_amount"]
[1737780684281,0.39643941,250.9,250.82,0.063]
[1737780684983,219.7,250.89,250.82,0.063]
[1737780685187,0.39643941,250.88,250.82,0.063]
[1737780685364,138.3,250.87,250.82,0.063]
[1737780687386,219.7,250.86,250.82,0.063]
[1737780689489,220.09643941,250.85,250.82,0.063]
[1737780689797,219.7,250.85,250.82,0.063]
[1737780689971,0.39643941,250.84,250.82,0.063]
[1737780690573,219.7,250.83,250.82,0.063]
[1737780690985,1.0,250.85,250.82,0.063]
[1737780691182,0.39643941,250.84,250.82,0.063]
[1737780691681,1.5947,250.83,250.82,0.063]
[1737780692282,0.39643941,250.84,250.82,0.063]
[1737780692483,1.5946,250.85,250.82,0.063]
[1737780692782,138.3,250.84,250.82,0.063]
[1737780693399,139.8946,250.84,250.82,0.063]
[1737780695995,138.3,250.83,250.82,0.063]
[1737780701878,6.0397,250.86,250.82,0.063]
[1737780704310,138.3,250.85,250.82,4.0498]
[1737780706102,138.3,250.85,250.82,0.063]
[1737780711123,139.8946,250.85,250.82,0.063]
[1737780711292,0.39643941,250.84,250.82,0.063]
[1737780711693,1.5947,250.83,250.82,0.063]
[1737780713996,1.99093941,250.86,250.82,0.063]
[1737780715114,1.0,250.85,250.82,0.063]
[1737780715310,0.39643941,250.84,250.82,0.063]
[1737780717224,139.8947,250.83,250.82,0.063]
[1737780717608,164.671584,250.83,250.82,0.063]
[1737780718628,163.671584,250.83,250.82,0.063]
[1737780719909,139.8947,250.83,250.82,0.063]
[1737780722605,1.5947,250.83,250.82,0.063]
[1737780722804,1.99113941,250.83,250.82,0.063]
[1737780723029,1.5947,250.83,250.82,0.063]
[1737780724137,0.39643941,250.87,250.82,0.063]
[1737780724138,1.5946,250.85,250.82,0.063]
[1737780724311,138.3,250.84,250.82,0.063]
[1737780729720,81.4,250.89,250.83,3.9867]
[1737780731001,81.4,250.89,250.83,5.8767]
[1737780731304,0.03,250.91,250.85,23.776884]
[1737780732106,0.03,250.91,250.85,25.666884]
[1737780734520,0.03,250.91,250.86,3.9862]
[1737780734727,0.03,250.91,250.86,5.8762]
[1737780739046,0.03,250.91,250.86,1.89]
[1737780739623,219.7,250.9,250.86,1.89]
[1737780740253,219.7,250.9,250.82,0.063]
[1737780740416,219.7,250.9,250.82,28.703]
[1737780740623,219.7,250.9,250.83,3.9867]
[1737780740845,219.7,250.89,250.82,28.703]
[1737780741235,221.2943,250.89,250.82,28.703]
[1737780742050,221.2943,250.89,250.82,0.063]
[1737780743323,0.39643941,250.88,250.82,0.063]
[1737780745224,219.7,250.87,250.82,0.063]
[1737780745424,221.2944,250.87,250.82,0.063]
[1737780745629,220.09643941,250.86,250.82,0.063]
[1737780745840,0.39643941,250.85,250.82,0.063]
[1737780746634,1.5946,250.84,250.82,0.063]
[1737780749348,219.7,250.83,250.82,0.063]
[1737780755353,1.5946,250.84,250.82,0.063]
[1737780756243,1.5943,250.88,250.82,0.063]
[1737780756442,0.39643941,250.87,250.82,0.063]
[1737780757939,1.5945,250.86,250.82,0.063]
[1737780761175,138.3,250.85,250.82,0.063]
[1737780761340,1.5946,250.84,250.82,0.063]
[1737780762271,1.5946,250.84,250.82,0.0001]
[1737780762272,171.247584,250.83,250.82,0.0001]
[1737780762449,1.5947,250.82,250.8,0.0001]
[1737780762644,138.69643941,250.81,250.8,0.0001]
[1737780762841,138.3,250.81,250.8,0.0001]
[1737780767168,81.4,250.81,250.8,0.0001]
[1737780769375,105.176884,250.81,250.8,0.0001]
[1737780769568,105.176884,250.81,250.75,0.03]
[1737780769569,1.0,250.77,250.75,0.0001]
[1737780769747,24.17332341,250.76,250.66,30.0]
[1737780770060,219.7,250.75,250.66,30.0]
[1737780770271,24.17332341,250.74,250.66,30.0]
[1737780770873,24.17332341,250.74,250.58,1.5051]
[1737780771076,23.776884,250.72,250.58,1.5051]
[1737780771276,24.17332341,250.72,250.58,1.5051]
[1737780771774,1.5954,250.71,250.58,1.5051]
[1737780771960,0.39643941,250.7,250.58,1.5051]
[1737780773568,6.69743941,250.7,250.58,1.5051]
[1737780776266,6.69743941,250.7,250.57,3.9908]
[1737780777166,6.301,250.7,250.57,3.9908]
[1737780777891,6.69743941,250.7,250.57,3.9908]
[1737780789586,30.47432341,250.7,250.57,3.9908]
[1737780804884,30.36907776,250.7,250.57,3.9908]
[1737780813075,30.36907776,250.7,250.56,0.063]
[1737780813705,30.36907776,250.7,250.56,4.054]
[1737780819410,30.39907776,250.7,250.56,4.054]
[1737780826420,25.776884,250.57,250.56,0.063]
[1737780826606,25.776884,250.57,250.54,0.063]
[1737780826607,0.39643941,250.57,250.44,1.6446]
[1737780827611,219.7,250.56,250.44,1.6446]
[1737780828114,1.5964,250.55,250.44,1.6446]
[1737780829716,138.3,250.54,250.44,5.6374]
[1737780834738,138.3,250.54,250.44,5.7004]
[1737780835545,138.3,250.55,250.44,5.7004]
[1737780835740,138.3,250.55,250.45,27.769584]
[1737780841435,81.4,250.56,250.45,27.769584]
[1737780845642,138.33,250.57,250.49,25.323984]
[1737780845818,138.33,250.57,250.51,23.776884]
[1737780846019,0.03,250.57,250.51,23.776884]
[1737780847438,0.03,250.57,250.52,3.9916]
[1737780862659,0.03,250.57,250.53,23.776884]
[1737780864363,0.03,250.57,250.56,20.0]
[1737780864866,0.03,250.57,250.56,23.991]
[1737780865359,0.03,250.57,250.52,3.9916]
[1737780865665,0.03,250.57,250.53,22.09]
[1737780865879,0.03,250.57,250.49,4.2071]
[1737780866164,0.03,250.57,250.49,8.1992]
[1737780868249,0.03,250.57,250.5,23.776884]
[1737780868450,0.03,250.57,250.5,24.776784]
[1737780868648,0.03,250.57,250.53,20.0]
[1737780870966,0.03,250.57,250.55,23.776884]
[1737780871964,0.03,250.57,250.54,3.9913]
[1737780874258,0.03,250.57,250.55,23.776884]
[1737780875148,0.03,250.57,250.56,2.66]
[1737780875469,0.03,250.57,250.56,6.651]
[1737780876761,0.03,250.57,250.54,2.66]
[1737780876954,0.03,250.57,250.52,4.0545]
[1737780877273,0.03,250.57,250.52,0.063]
[1737780879168,0.03,250.57,250.52,27.831484]
[1737780880250,0.03,250.57,250.52,4.0546]
[1737780884556,0.03,250.57,250.52,0.063]
[1737780888983,138.3,250.56,250.52,0.063]
[1737780889763,139.8964,250.56,250.52,0.063]
[1737780892285,138.3,250.56,250.52,0.063]
[1737780894980,138.3,250.55,250.52,0.063]
[1737780895292,138.3,250.56,250.52,0.063]
[1737780895470,139.8964,250.56,250.52,0.063]
[1737780900797,138.3,250.55,250.52,0.063]
[1737780901188,139.8964,250.55,250.52,0.063]
[1737780902606,138.3,250.55,250.52,0.063]
[1737780903291,138.3,250.55,250.52,4.0546]
[1737780904598,138.3,250.55,250.54,3.9913]
[1737780904802,0.03,250.57,250.55,23.776884]
[1737780905508,0.03,250.57,250.54,3.9913]
[1737780908094,0.03,250.57,250.55,20.0]
[1737780908295,0.03,250.57,250.55,23.991]
[1737780908499,0.03,250.57,250.52,0.063]
[1737780908709,0.03,250.57,250.52,4.0546]
[1737780909203,0.03,250.57,250.52,6.7146]
[1737780910612,0.03,250.57,250.52,4.0546]
[1737780910821,0.03,250.57,250.52,6.7146]
[1737780911912,0.03,250.57,250.52,2.723]
[1737780912216,0.03,250.57,250.52,0.063]
[1737780912417,6.4089,250.56,250.52,0.063]
[1737780912619,145.10533941,250.56,250.52,0.063]
[1737780912795,144.7089,250.56,250.52,0.063]
[1737780914018,1.5964,250.55,250.52,0.063]
[1737780915721,219.7,250.54,250.52,0.063]
[1737780920821,221.2965,250.54,250.52,0.063]
[1737780921706,138.3,250.53,250.52,0.063]
[1737780925529,0.03,250.54,250.52,0.063]
[1737780926419,0.03,250.54,250.52,4.0546]
[1737780927715,0.03,250.54,250.52,0.063]
[1737780930933,6.083,250.53,250.52,0.063]
[1737780932737,0.03,250.54,250.52,0.063]
[1737780937859,0.03,250.54,250.52,4.0546]
[1737780938538,0.03,250.54,250.52,0.063]
[1737780946249,0.03,250.54,250.52,4.0546]
[1737780948046,0.03,250.54,250.53,23.776884]
[1737780949058,0.03,250.54,250.52,4.0546]
[1737780949368,0.03,250.54,250.53,20.0]
[1737780949539,0.03,250.54,250.53,43.776884]
[1737780950153,0.03,250.54,250.53,23.776884]
[1737780950354,0.03,250.54,250.52,4.0546]
[1737780950943,0.03,250.54,250.53,23.776884]
[1737780952737,0.03,250.54,250.53,24.776784]
[1737780954137,0.03,250.54,250.53,23.776884]
[1737780956153,0.03,250.54,250.52,0.063]
[1737780956359,0.03,250.54,250.52,22.143]
[1737780957339,0.03,250.54,250.52,0.063]
[1737780959944,0.03,250.54,250.52,23.839884]
[1737780960140,0.03,250.54,250.52,27.831484]
[1737780961555,0.03,250.54,250.52,28.831384]
[1737780962163,0.03,250.54,250.52,27.831484]
[1737780963255,0.03,250.54,250.53,24.776884]
[1737780963460,0.03,250.54,250.53,25.776784]
[1737780964070,0.03,250.54,250.53,47.856784]
[1737780964572,0.03,250.54,250.53,45.856884]
[1737780964942,0.03,250.54,250.53,23.776884]
[1737780966361,0.03,250.54,250.53,26.476884]
[1737780968379,0.03,250.54,250.52,4.0546]
[1737780968685,0.03,250.54,250.52,0.063]
[1737780980582,0.42643941,250.54,250.52,0.063]
[1737780980961,0.03,250.54,250.52,0.063]
[1737780982073,0.03,250.54,250.45,0.063]
[1737780982074,0.42643941,250.54,250.45,0.063]
[1737780982279,1.5966,250.53,250.45,0.063]
[1737780984662,1.99303941,250.53,250.45,0.063]
[1737780985383,1.5966,250.53,250.45,0.063]
[1737780986468,0.03,250.54,250.45,0.063]
[1737780986957,219.7,250.53,250.45,0.063]
[1737780988672,1.5966,250.52,250.45,0.063]
[1737780988870,1.99303941,250.52,250.45,0.063]
[1737780989071,1.5966,250.52,250.45,0.063]
[1737780992881,219.7,250.51,250.45,0.063]
[1737780993067,1.5968,250.5,250.45,0.063]
[1737780993264,138.3,250.49,250.45,0.063]
[1737780995271,139.8968,250.49,250.45,0.063]
[1737780998883,1.5969,250.47,250.45,0.063]
[1737780999196,219.7,250.46,250.45,0.063]
[1737781002379,7.8302,250.47,250.45,0.063]
[1737781004792,1.5969,250.47,250.45,0.063]
[1737781004993,6.1192,250.53,250.45,0.063]
[1737781005178,219.7,250.52,250.45,0.063]
[1737781005973,219.73,250.52,250.45,0.063]
[1737781007099,1.5967,250.51,250.45,0.063]
[1737781010726,138.3,250.5,250.45,0.063]
[1737781011002,1.5968,250.49,250.45,0.063]
[1737781015804,138.3,250.49,250.45,0.063]
[1737781019313,139.8968,250.49,250.45,0.063]
[1737781019610,138.3,250.49,250.45,0.063]
[1737781022808,1.5967,250.51,250.45,0.063]
[1737781023021,0.03,250.52,250.45,0.063]
[1737781023309,0.03,250.52,250.45,2.743]
[1737781023496,0.03,250.52,250.45,6.7356]
[1737781026807,0.03,250.52,250.47,3.9924]
[1737781027315,0.03,250.52,250.45,6.7356]
[1737781029311,0.03,250.52,250.46,23.776884]
[1737781033321,0.03,250.52,250.47,3.9924]
[1737781033517,0.03,250.52,250.45,6.7356]
[1737781033723,0.03,250.52,250.45,2.743]
[1737781034102,0.03,250.52,250.45,0.063]
[1737781034523,138.33,250.52,250.45,0.063]
[1737781036218,139.9266,250.52,250.45,0.063]
[1737781040514,138.3,250.51,250.45,0.063]
[1737781042117,139.8967,250.51,250.45,0.063]
[1737781042320,138.3,250.51,250.45,0.063]
[1737781047720,139.8967,250.51,250.45,0.063]
[1737781052329,138.3,250.5,250.45,0.063]
[1737781052532,139.8968,250.5,250.45,0.063]
[1737781055331,6.4122,250.49,250.45,0.063]
[1737781056028,139.8968,250.5,250.45,0.063]
[1737781056236,138.3,250.5,250.45,0.063]
[1737781058332,138.3,250.49,250.45,0.063]
[1737781059934,139.8968,250.49,250.45,0.063]
[1737781060932,138.3,250.49,250.45,0.063]
[1737781061119,138.3,250.49,250.45,4.0557]
[1737781062019,0.03,250.52,250.45,4.0557]
[1737781062220,0.03,250.52,250.49,20.0]
[1737781063333,0.03,250.52,250.5,3.992]
[1737781064747,0.03,250.52,250.48,23.776884]
[1737781066549,0.03,250.52,250.49,3.9921]
[1737781073047,0.03,250.52,250.46,13.9742]
[1737781074543,0.03,250.52,250.48,3.9923]
[1737781075325,0.03,250.52,250.49,0.063]
[1737781076646,0.03,250.52,250.5,3.992]
[1737781080649,0.03,250.52,250.5,33.992]
[1737781081448,0.03,250.52,250.5,3.992]
[1737781083831,0.03,250.52,250.51,20.0]
[1737781084645,0.03,250.52,250.51,43.776884]
[1737781085530,0.03,250.52,250.5,3.992]
[1737781090936,0.03,250.52,250.49,0.063]
[1737781093141,139.9266,250.52,250.49,0.063]
[1737781094148,138.69643941,250.51,250.49,0.063]
[1737781094352,138.3,250.51,250.49,0.063]
[1737781094550,0.39643941,250.5,250.49,0.063]
[1737781095144,24.17332341,250.5,250.49,0.063]
[1737781095344,33.57392341,250.5,250.49,0.063]
[1737781095774,33.177484,250.5,250.49,0.063]
[1737781095958,27.025984,250.5,250.45,0.063]
[1737781096262,23.776884,250.48,250.45,0.063]
[1737781097558,1.5969,250.47,250.45,0.063]
[1737781099855,138.3,250.46,250.45,0.063]
[1737781106076,1.5971,250.44,250.43,0.063]
[1737781106372,25.373984,250.44,250.43,0.063]
[1737781106750,25.77042341,250.44,250.43,0.063]
[1737781106947,25.373984,250.44,250.43,0.063]
[1737781109974,25.77042341,250.44,250.43,0.063]
[1737781113978,25.77042341,250.44,250.37,0.063]
[1737781113979,23.776884,250.43,250.37,0.063]
[1737781114285,105.176884,250.43,250.37,0.063]
[1737781115462,1.5973,250.42,250.37,0.063]
[1737781117684,1.5974,250.4,250.37,0.063]
[1737781118773,138.3,250.39,250.37,0.063]
[1737781119884,139.8975,250.39,250.37,0.063]
[1737781123186,249.555184,250.38,250.37,0.063]
[1737781123379,32.482584,250.38,250.24,0.063]
[1737781123579,220.09643941,250.37,250.24,0.063]
[1737781123773,1.5977,250.35,250.24,0.063]
[1737781124168,138.3,250.34,250.26,4.0588]
[1737781124693,219.7,250.37,250.26,14.0484]
[1737781125069,221.2976,250.37,250.26,0.063]
[1737781125268,23.776884,250.34,250.26,0.063]
[1737781125486,23.776884,250.32,250.26,0.063]
[1737781125797,1.598,250.3,250.26,0.063]
[1737781127594,1.5982,250.28,250.26,0.063]
[1737781128697,1.99463941,250.28,250.26,0.063]
[1737781129080,162.076884,250.27,250.26,0.063]
[1737781129279,168.155184,250.27,250.26,0.063]
[1737781132503,29.855184,250.27,250.26,0.063]
[1737781132797,30.25162341,250.27,250.26,0.063]
[1737781133911,1.5981,250.3,250.26,0.063]
[1737781134409,23.776884,250.29,250.26,0.063]
[1737781134592,0.39643941,250.28,250.26,0.063]
[1737781134793,1.5982,250.27,250.26,0.063]
[1737781134991,0.39643941,250.3,250.26,0.063]
[1737781135181,1.99433941,250.32,250.26,0.063]
[1737781135819,2.99433941,250.32,250.26,0.063]
[1737781136017,23.776884,250.31,250.26,0.063]
[1737781136313,1.99443941,250.3,250.26,0.063]
[1737781137497,1.598,250.3,250.26,0.063]
[1737781137907,138.3,250.29,250.26,0.063]
[1737781139015,138.3,250.31,250.26,0.063]
[1737781139604,138.3,250.3,250.26,0.063]
[1737781143104,139.898,250.3,250.26,0.063]
[1737781143406,138.3,250.3,250.26,0.063]
[1737781144498,1.5978,250.34,250.26,0.063]
[1737781145208,138.3,250.33,250.26,0.063]
[1737781146413,139.8978,250.34,250.26,0.063]
[1737781148106,139.8978,250.34,250.26,4.0587]
[1737781148995,138.3,250.34,250.26,4.0587]
[1737781149310,138.3,250.34,250.26,5.6572]
[1737781149608,138.3,250.36,250.26,6.6572]
[1737781149809,0.063,250.37,250.27,23.776884]
[1737781150211,0.063,250.37,250.26,16.6468]
[1737781150514,0.063,250.37,250.26,15.6468]
[1737781150816,1.6606,250.37,250.26,5.6572]
[1737781151631,138.3,250.36,250.26,0.063]
[1737781153626,1.5977,250.35,250.26,0.063]
[1737781156319,139.8977,250.35,250.26,0.063]
[1737781156918,0.39643941,250.34,250.26,0.063]
[1737781157121,146.3447,250.35,250.26,0.063]
[1737781158616,138.3,250.34,250.26,0.063]
[1737781160118,138.3,250.34,250.26,4.0588]
[1737781160621,139.8978,250.34,250.26,0.063]
[1737781162217,1.5978,250.34,250.26,0.063]
[1737781164116,138.69643941,250.33,250.26,0.063]
[1737781164316,138.3,250.33,250.26,0.063]
[1737781165211,1.598,250.31,250.26,0.063]
[1737781168024,138.3,250.33,250.26,0.063]
[1737781168025,139.8979,250.33,250.26,0.063]
[1737781168316,138.3,250.32,250.26,0.063]
[1737781168821,144.8027,250.32,250.26,0.063]
[1737781171406,146.4006,250.32,250.26,0.063]
[1737781173924,23.776884,250.3,250.26,0.063]
[1737781174125,0.39643941,250.29,250.26,0.063]
[1737781175331,1.5982,250.28,250.26,0.063]
[1737781177030,138.3,250.27,250.26,0.063]
[1737781179418,1.5982,250.28,250.26,0.063]
[1737781183034,138.3,250.27,250.26,0.063]
[1737781189432,138.3,250.3,250.26,0.063]
[1737781194032,138.3,250.3,250.26,4.0587]
[1737781194845,1.5977,250.35,250.26,4.0587]
[1737781196443,139.8977,250.35,250.26,4.0587]
[1737781197843,139.8977,250.35,250.26,0.063]
[1737781199647,24.17332341,250.34,250.26,0.063]
[1737781200126,138.3,250.33,250.26,0.063]
[1737781201151,1.5979,250.32,250.26,0.063]
[1737781202231,1.99433941,250.32,250.26,0.063]
[1737781203335,23.776884,250.31,250.26,0.063]
[1737781203536,0.39643941,250.3,250.26,0.063]
[1737781203847,138.3,250.29,250.26,0.063]
[1737781204043,138.69643941,250.28,250.26,0.063]
[1737781204235,0.39643941,250.27,250.26,0.063]
[1737781204634,24.17332341,250.27,250.26,0.0001]
[1737781205840,25.77152341,250.27,250.26,0.0001]
[1737781207252,25.77152341,250.27,250.24,0.0001]
[1737781207461,23.776884,250.25,250.24,0.0001]
[1737781207639,24.17332341,250.25,250.24,0.0001]
[1737781207839,25.77172341,250.25,250.24,0.0001]
[1737781208936,26.77172341,250.25,250.24,0.0001]
[1737781209136,23.776884,250.22,250.17,0.03]
[1737781209341,0.39643941,250.21,250.17,0.03]
[1737781210355,0.39643941,250.22,250.17,0.03]
[1737781210747,23.776884,250.2,250.17,0.03]
[1737781210952,0.39643941,250.19,250.17,0.03]
[1737781211868,1.5988,250.18,250.17,0.03]
[1737781212968,1.99523941,250.18,250.17,0.03]
[1737781214038,29.76922341,250.18,250.03,1.61921164]
[1737781214345,81.4,250.17,250.01,5.6542]
[1737781215245,81.4,250.17,250.01,7.22504616]
[1737781215453,1.5989,250.16,250.01,5.6542]
[1737781215658,0.39643941,250.15,250.0,0.03]
[1737781215866,0.39643941,250.15,250.01,3.9998]
[1737781217554,1.5991,250.14,250.0,0.03]
[1737781218647,139.8992,250.13,250.0,0.03]
[1737781220971,1.5992,250.11,250.0,0.03]
[1737781222159,1.5991,250.14,250.0,0.03]
[1737781224659,139.8992,250.13,250.0,0.03]
[1737781227469,1.5992,250.11,250.0,0.03]
[1737781230967,9.5991,250.12,250.0,0.03]
[1737781233381,9.5991,250.12,250.02,23.9996]
[1737781235903,9.5991,250.12,250.01,20.0]
[1737781236973,9.5991,250.12,250.02,3.9996]
[1737781241687,9.0991,250.12,250.02,3.9996]
[1737781245368,9.0991,250.12,250.0,0.03]
[1737781245369,147.3991,250.12,250.0,0.03]
[1737781245569,147.3991,250.12,250.0,23.806884]
[1737781246586,147.3991,250.12,250.0,0.03]
[1737781246785,147.3991,250.12,250.01,3.9998]
[1737781248280,9.0991,250.12,250.01,3.9998]
[1737781248675,7.4999,250.12,250.01,3.9998]
[1737781249084,6.9999,250.12,250.01,3.9998]
[1737781253200,8.5991,250.12,250.01,3.9998]
[1737781260709,0.063,250.17,250.08,1.0]
[1737781261005,0.063,250.17,250.15,23.776884]
[1737781261513,0.063,250.17,250.14,23.776884]
[1737781262010,0.063,250.17,250.09,2.74]
[1737781262505,0.063,250.17,250.1,23.776884]
[1737781262994,0.063,250.17,250.1,27.775184]
[1737781265925,0.063,250.17,250.1,23.776884]
[1737781266207,0.063,250.17,250.09,2.74]
[1737781266503,6.2932,250.16,250.09,2.74]
[1737781267505,6.2932,250.16,250.02,3.9996]
[1737781267506,1.6568,250.15,250.02,3.9996]
[1737781267801,139.9568,250.15,250.02,6.7596]
[1737781268006,138.3,250.14,250.02,3.9996]
[1737781268716,1.5991,250.13,250.02,3.9996]
[1737781269607,139.8991,250.13,250.02,3.9996]
[1737781269791,144.98963941,250.12,250.0,0.03]
[1737781269991,138.3,250.11,250.0,0.03]
[1737781270197,0.39643941,250.1,250.0,0.03]
[1737781270503,7.95,250.09,250.0,0.03]
[1737781270812,1.5995,250.07,250.0,0.03]
[1737781272727,138.3,250.08,250.0,0.03]
[1737781275009,7.95,250.09,250.0,0.03]
[1737781275405,6.2932,250.09,250.0,0.03]
[1737781277508,6.2932,250.09,250.0,4.03]
[1737781278609,6.2932,250.09,250.0,14.03]
[1737781281399,6.2932,250.09,250.0,0.03]
[1737781281713,6.2932,250.09,250.02,13.9988]
[1737781284519,6.2932,250.09,250.03,23.776884]
[1737781284822,6.2932,250.09,250.04,13.9977]
[1737781285399,0.063,250.12,250.04,13.9977]
[1737781285813,0.063,250.12,250.07,23.776884]
[1737781287024,0.063,250.12,250.08,3.9987]
[1737781288838,0.063,250.12,250.09,23.776884]
[1737781289125,0.063,250.17,250.1,2.76]
[1737781289317,0.063,250.17,250.11,20.0]
[1737781290422,0.063,250.17,250.12,23.776884]
[1737781290608,0.063,250.17,250.12,37.770084]
[1737781292222,6.1684,250.25,250.12,37.770084]
[1737781292545,6.56483941,250.25,250.12,15.0432]
[1737781292830,6.56483941,250.25,250.12,13.9932]
[1737781295410,6.1684,250.25,250.12,13.9932]
[1737781295962,144.4684,250.25,250.12,13.9932]
[1737781296737,144.88513941,250.24,250.12,13.9932]
[1737781296929,144.4887,250.24,250.12,13.9932]
[1737781297534,144.4887,250.24,250.1,23.776884]
[1737781298237,144.4887,250.24,250.08,23.776884]
[1737781298440,144.4887,250.24,250.12,23.776884]
[1737781298939,144.4887,250.24,250.12,24.776884]
[1737781299137,6.1887,250.24,250.16,23.776884]
[1737781299340,6.1887,250.24,250.18,23.776884]
[1737781300022,6.1887,250.24,250.19,3.9969]
[1737781303834,6.1887,250.24,250.19,13.9893]
[1737781304040,6.1887,250.24,250.2,23.776884]
[1737781306639,6.1887,250.24,250.21,3.9966]
[1737781309541,0.063,250.25,250.24,23.776884]
[1737781313363,6.1428,250.31,250.24,23.776884]
[1737781313538,7.8717,250.37,250.24,20.0]
[1737781313848,7.8717,250.37,250.24,21.9999]
[1737781314036,7.8717,250.37,250.24,21.0]
[1737781314225,6.2368,250.37,250.27,23.776884]
[1737781316053,6.2368,250.37,250.27,53.306884]
[1737781316254,6.2368,250.37,250.29,23.776884]
[1737781317558,6.2368,250.37,250.31,23.776884]
[1737781317750,6.2368,250.37,250.31,26.556884]
[1737781318570,0.063,250.37,250.31,26.556884]
[1737781318733,0.063,250.37,250.34,20.0]
[1737781318935,0.063,250.37,250.35,23.776884]
[1737781319358,0.063,250.37,250.36,20.0]
[1737781320036,0.063,250.37,250.36,23.9942]
[1737781321858,0.063,250.38,250.37,23.776884]
[1737781322060,0.063,250.42,250.37,23.776884]
[1737781322356,0.063,250.42,250.37,53.776884]
[1737781322947,0.063,250.42,250.41,23.776884]
[1737781323957,0.063,250.42,250.41,27.770284]
[1737781325159,0.063,250.43,250.41,27.770284]
[1737781327958,0.063,250.43,250.41,57.770284]
[1737781328478,0.03,250.49,250.44,20.0]
[1737781328640,0.03,250.49,250.45,2.76]
[1737781329151,0.03,250.49,250.46,23.776884]
[1737781329655,0.03,250.49,250.48,43.776884]
[1737781330352,0.03,250.49,250.48,47.769184]
[1737781332567,0.063,250.51,250.49,23.776884]
[1737781332863,0.0001,250.51,250.5,20.0]
[1737781333067,0.0001,250.52,250.51,23.776884]
[1737781333563,0.0001,250.52,250.51,20.0]
[1737781334256,6.3926,250.62,250.56,20.0]
[1737781334561,0.063,250.63,250.61,23.776884]
[1737781335865,0.063,250.63,250.62,27.766984]
[1737781336050,6.4556,250.68,250.62,37.742184]
[1737781336645,6.4556,250.68,250.62,3.9901]
[1737781337052,6.4556,250.68,250.6,6.7303]
[1737781337243,8.0512,250.68,250.6,2.74]
[1737781337442,146.3512,250.68,250.6,2.74]
[1737781338564,144.7556,250.68,250.6,2.74]
[1737781339559,144.7556,250.68,250.6,6.7303]
[1737781340473,6.4556,250.68,250.61,23.776884]
[1737781340845,6.4556,250.68,250.6,2.74]
[1737781341075,8.0512,250.68,250.6,2.74]
[1737781341456,6.4556,250.68,250.6,2.74]
[1737781343179,6.4556,250.68,250.6,6.7303]
[1737781344369,6.4556,250.68,250.6,2.74]
[1737781344871,8.0512,250.68,250.58,3.9906]
[1737781346570,6.4556,250.68,250.58,3.9906]